bitfinex/quotes_SOLUSD_20250721
["timestamp","ask_amount","ask_price","bid_price","bid_amount"]
[1753086633559,37.3,191.05,191.04,0.03]
[1753086635284,38.06,191.05,191.04,0.03]
[1753086636066,0.68,191.05,191.04,0.03]
[1753086636389,38.06,191.05,191.04,0.03]
[1753086636576,37.38,191.05,191.04,0.03]
[1753086636990,17.46468397,191.09,191.04,0.03]
[1753086637170,37.38,191.08,191.04,5.93317842]
[1753086637487,0.68,191.07,191.04,0.03]
[1753086637687,6.58317842,191.07,191.04,0.03]
[1753086637880,48.68786239,191.05,191.04,0.03]
[1753086638066,42.78468397,191.05,191.04,0.03]
[1753086638265,49.36786239,191.05,191.04,0.03]
[1753086638479,43.46468397,191.05,191.04,0.03]
[1753086638668,6.58317842,191.05,191.04,0.03]
[1753086638871,66.02209426,191.05,191.04,0.03]
[1753086639074,54.88468397,191.05,191.04,0.03]
[1753086639276,60.78786239,191.05,191.04,0.03]
[1753086639485,66.02209426,191.05,191.04,0.03]
[1753086641370,67.64089426,191.05,191.04,0.03]
[1753086641879,73.87799426,191.05,191.04,0.03]
[1753086642283,67.97481584,191.05,191.04,0.03]
[1753086642598,73.87799426,191.05,191.04,0.03]
[1753086646199,67.97481584,191.05,191.04,0.03]
[1753086646410,73.87799426,191.05,191.04,0.03]
[1753086647785,73.87799426,191.05,191.0,0.03]
[1753086647786,16.78468397,191.01,191.0,1e-08]
[1753086647983,60.18786239,191.01,191.0,1e-08]
[1753086648183,86.88786239,191.01,191.0,1e-08]
[1753086648397,92.12319038,191.01,191.0,1e-08]
[1753086648588,86.22001196,191.01,191.0,1e-08]
[1753086648798,98.0263688,191.01,191.0,1e-08]
[1753086649401,42.78468397,190.95,190.9,0.03]
[1753086649611,86.18786239,190.95,190.9,0.03]
[1753086649810,86.88786239,190.95,190.9,0.03]
[1753086650508,92.12483541,190.95,190.9,0.03]
[1753086650991,16.78468397,190.96,190.91,5.90317842]
[1753086651305,54.30468397,190.95,190.92,6.64317842]
[1753086651609,54.30468397,190.95,190.92,0.74]
[1753086651816,16.78468397,190.95,190.92,0.74]
[1753086652110,54.30468397,190.95,190.92,5.93317842]
[1753086652304,54.30468397,190.95,190.92,0.74]
[1753086653422,54.30468397,190.95,190.94,0.74]
[1753086653721,37.52,190.95,190.94,0.74]
[1753086654818,16.78468397,190.99,190.94,11.88042572]
[1753086655000,37.5,190.98,190.95,6.61317842]
[1753086655197,37.5,190.98,190.96,0.71]
[1753086655402,37.52,190.97,190.96,0.71]
[1753086655601,37.52,190.97,190.96,5.90317842]
[1753086656315,37.5,190.97,190.96,6.61317842]
[1753086656799,37.5,190.97,190.96,11.8498772]
[1753086658218,16.78468397,191.03,190.96,11.8498772]
[1753086658406,12.91747842,191.04,190.96,11.8498772]
[1753086658407,16.78468397,191.01,190.98,5.90317842]
[1753086658723,37.5,191.0,190.99,6.61317842]
[1753086658922,37.5,191.0,190.99,11.84905464]
[1753086659628,37.5,191.0,190.99,6.61317842]
[1753086660012,37.5,191.0,190.99,0.71]
[1753086660921,5.23395818,191.06,190.99,11.84903023]
[1753086661109,60.86786239,191.05,190.99,6.61317842]
[1753086661308,60.86786239,191.05,191.0,5.90317842]
[1753086661507,23.38786239,191.05,191.0,6.61317842]
[1753086661812,37.48,191.04,191.0,6.61317842]
[1753086662329,37.48,191.04,191.0,0.71]
[1753086662505,37.48,191.03,191.0,6.61317842]
[1753086662821,37.48,191.03,191.0,0.71]
[1753086663037,22.68786239,191.02,190.95,26.71]
[1753086663227,37.5,191.01,190.96,5.90317842]
[1753086663521,37.5,191.01,190.97,5.90317842]
[1753086663719,0.7,191.01,190.96,6.61317842]
[1753086663940,5.23432407,191.05,190.94,0.74]
[1753086663941,5.90317842,190.98,190.94,0.74]
[1753086664100,0.7,191.02,190.95,0.71]
[1753086664302,37.52,191.01,190.97,5.90317842]
[1753086664605,37.52,191.01,190.98,0.71]
[1753086665215,22.71949624,191.03,190.97,5.90317842]
[1753086665520,37.52,191.02,190.98,0.71]
[1753086665724,37.52,191.02,191.0,5.90317842]
[1753086666025,16.78468397,191.05,191.01,6.61317842]
[1753086666222,37.68,191.07,191.03,5.90317842]
[1753086666521,37.52,191.06,191.04,6.61317842]
[1753086666822,37.52,191.05,191.04,6.61317842]
[1753086668028,37.52,191.05,191.04,0.71]
[1753086668726,37.52,191.05,191.04,6.61317842]
[1753086671706,37.52,191.05,191.0,26.0]
[1753086671707,37.52,191.05,191.03,5.90317842]
[1753086671905,37.52,191.05,191.02,5.90317842]
[1753086672325,38.22,191.05,191.0,5.90317842]
[1753086672503,38.22,191.05,191.0,6.61317842]
[1753086673134,38.22,191.05,191.0,11.84872169]
[1753086673442,37.52,191.05,191.01,6.59317842]
[1753086673614,43.45430912,191.05,191.0,5.90317842]
[1753086673934,43.45430912,191.05,191.0,6.59317842]
[1753086674530,43.45430912,191.05,191.0,0.69]
[1753086674736,43.45430912,191.05,191.0,6.59317842]
[1753086675040,37.52,191.05,191.02,5.90317842]
[1753086675333,37.52,191.05,191.02,6.59317842]
[1753086675510,37.52,191.05,191.02,5.90317842]
[1753086675712,37.52,191.05,191.03,0.69]
[1753086677222,37.52,191.05,191.01,5.90317842]
[1753086677536,37.58,191.05,191.02,0.69]
[1753086678130,37.58,191.05,191.02,6.59317842]
[1753086679723,37.58,191.05,191.02,0.69]
[1753086679939,37.58,191.05,191.01,5.90317842]
[1753086680120,37.58,191.05,190.99,11.82898137]
[1753086680121,0.7,191.04,190.99,11.82898137]
[1753086680316,0.06,191.09,191.03,5.90317842]
[1753086680514,0.06,191.13,191.08,5.90317842]
[1753086680826,37.56,191.24,191.16,5.23121992]
[1753086681022,37.56,191.24,191.21,5.90317842]
[1753086681617,37.56,191.24,191.22,5.90317842]
[1753086682130,37.56,191.24,191.2,5.90317842]
[1753086682430,0.06,191.24,191.23,5.90317842]
[1753086682634,0.06,191.24,191.23,6.59317842]
[1753086683242,0.06,191.24,191.23,14.57456656]
[1753086684048,0.06,191.24,191.23,16.12336656]
[1753086684549,1e-08,191.24,191.23,32.90805053]
[1753086684758,0.06,191.26,191.24,16.78468397]
[1753086685050,0.06,191.35,191.29,26.0]
[1753086685357,0.06,191.35,191.29,39.88292634]
[1753086685525,0.06,191.35,191.29,40.57292634]
[1753086685719,0.06,191.35,191.29,49.22818788]
[1753086687061,0.06,191.35,191.33,26.0]
[1753086687348,0.06,191.35,191.3,0.69]
[1753086687547,0.06,191.35,191.33,8.65526154]
[1753086688147,0.06,191.35,191.31,9.34526154]
[1753086688666,0.06,191.35,191.34,8.65526154]
[1753086689030,0.06,191.35,191.34,9.34526154]
[1753086689237,0.06,191.35,191.31,0.69]
[1753086689533,0.06,191.35,191.32,8.65526154]
[1753086690733,0.06,191.35,191.31,8.65526154]
[1753086691437,0.76,191.35,191.31,8.65526154]
[1753086691639,0.76,191.35,191.3,8.65526154]
[1753086691844,0.06,191.35,191.34,8.65526154]
[1753086692234,0.06,191.35,191.34,9.34526154]
[1753086692941,0.06,191.35,191.29,47.72442354]
[1753086692942,0.06,191.35,191.32,5.22684376]
[1753086693137,0.06,191.35,191.34,8.65526154]
[1753086693650,0.06,191.35,191.34,9.34526154]
[1753086694752,0.1,191.36,191.35,22.01070957]
[1753086694965,0.1,191.36,191.35,31.35597111]
[1753086695153,0.06,191.39,191.38,26.0]
[1753086695334,0.06,191.43,191.38,80.71052308]
[1753086695538,0.06,191.43,191.42,8.65526154]
[1753086696047,0.06,191.43,191.42,9.34526154]
[1753086696358,0.06,191.43,191.42,0.69]
[1753086696531,0.06,191.43,191.42,35.34526154]
[1753086696732,0.06,191.43,191.42,40.56937605]
[1753086697279,0.88956093,191.45,191.44,26.0]
[1753086697432,60.0,191.55,191.46,1.5265]
[1753086697754,60.0,191.55,191.5,8.65526154]
[1753086697959,9.35526154,191.54,191.48,8.65526154]
[1753086698156,8.65526154,191.53,191.47,8.65526154]
[1753086698360,0.7,191.53,191.5,8.65526154]
[1753086698741,60.0,191.55,191.52,8.65526154]
[1753086698945,60.0,191.55,191.54,8.65526154]
[1753086699136,60.0,191.55,191.51,26.0]
[1753086699333,60.0,191.55,191.54,8.65526154]
[1753086701236,60.0,191.55,191.54,14.94086822]
[1753086701463,60.0,191.55,191.54,15.13086822]
[1753086701962,60.0,191.55,191.54,9.72002663]
[1753086702266,60.0,191.55,191.54,15.13086822]
[1753086702759,60.0,191.55,191.54,6.47560668]
[1753086702958,5.91757338,191.66,191.57,26.0]
[1753086703154,0.7,191.65,191.62,8.65526154]
[1753086703352,0.7,191.65,191.57,26.0]
[1753086703353,5.2173285,191.67,191.63,8.65526154]
[1753086703545,30.0,191.64,191.63,8.65526154]
[1753086703751,30.66,191.64,191.59,1.06448722]
[1753086703950,30.66,191.64,191.62,8.65526154]
[1753086704360,37.98,191.68,191.6,1.06443166]
[1753086704549,13.03935454,191.73,191.67,8.65526154]
[1753086704871,30.0,191.68,191.65,8.65526154]
[1753086705075,0.66,191.68,191.67,8.65526154]
[1753086705373,0.66,191.72,191.67,8.65526154]
[1753086705673,0.66,191.72,191.71,8.65526154]
[1753086705870,0.66,191.72,191.65,26.0]
[1753086706070,0.66,191.72,191.71,8.65526154]
[1753086706277,6.8978,191.74,191.71,8.65526154]
[1753086706469,0.66,191.73,191.69,8.65526154]
[1753086706772,0.66,191.73,191.71,8.65526154]
[1753086706972,5.21593991,191.72,191.7,8.65526154]
[1753086707152,0.66,191.71,191.7,8.65526154]
[1753086707553,6.2378,191.74,191.7,8.65526154]
[1753086707554,5.21568557,191.73,191.7,8.65526154]
[1753086707755,5.87568557,191.73,191.66,5.21750831]
[1753086707963,5.87568557,191.73,191.7,8.65526154]
[1753086708286,5.21568557,191.73,191.66,5.21750831]
[1753086708489,0.66,191.72,191.7,8.65526154]
[1753086709384,5.87599954,191.72,191.7,8.65526154]
[1753086709589,5.21599954,191.72,191.7,8.65526154]
[1753086709765,0.66,191.71,191.67,26.0]
[1753086710163,0.66,191.74,191.7,8.65526154]
[1753086710365,0.66,191.74,191.67,26.0]
[1753086710366,0.66,191.74,191.71,8.65526154]
[1753086710580,0.66,191.74,191.67,26.19]
[1753086710879,0.66,191.74,191.69,8.65526154]
[1753086711085,5.21566786,191.73,191.69,8.65526154]
[1753086711378,0.66,191.72,191.69,8.65526154]
[1753086711587,0.66,191.71,191.68,8.65526154]
[1753086711771,0.66,191.71,191.65,63.22]
[1753086711772,0.66,191.7,191.69,8.65526154]
[1753086711965,5.87566786,191.73,191.69,8.65526154]
[1753086712160,0.66,191.72,191.69,8.65526154]
[1753086712577,0.66,191.71,191.69,8.65526154]
[1753086712760,9.31526154,191.7,191.64,8.65526154]
[1753086712966,0.66,191.69,191.64,8.65526154]
[1753086713161,0.66,191.68,191.64,8.65526154]
[1753086713366,0.66,191.68,191.65,8.65526154]
[1753086713788,5.21682945,191.69,191.65,8.65526154]
[1753086713977,0.66,191.68,191.65,8.65526154]
[1753086714185,0.66,191.67,191.62,8.65526154]
[1753086714363,0.66,191.66,191.62,8.65526154]
[1753086714685,5.21682945,191.69,191.62,8.65526154]
[1753086714888,0.66,191.65,191.62,8.65526154]
[1753086715089,0.66,191.65,191.6,32.28358115]
[1753086715263,0.66,191.65,191.62,8.65526154]
[1753086716574,0.66,191.65,191.6,27.06443166]
[1753086716783,0.66,191.65,191.62,8.65526154]
[1753086717368,5.87794763,191.65,191.6,27.06443166]
[1753086717586,0.66,191.65,191.62,8.65526154]
[1753086717889,5.21734412,191.67,191.62,8.65526154]
[1753086718061,0.66,191.67,191.6,32.28362027]
[1753086718266,0.66,191.67,191.64,8.65526154]
[1753086718772,0.76,191.75,191.66,8.65526154]
[1753086718983,0.1,191.75,191.72,8.65526154]
[1753086719575,0.76,191.75,191.72,8.65526154]
[1753086719893,30.0,191.73,191.71,8.65526154]
[1753086720183,0.1,191.75,191.72,8.65526154]
[1753086720388,0.1,191.75,191.74,8.65526154]
[1753086720688,0.1,191.75,191.72,0.19]
[1753086720892,0.1,191.75,191.69,39.04149876]
[1753086720893,0.76,191.75,191.69,26.0]
[1753086721103,8.65526154,191.72,191.64,8.934515]
[1753086721360,5.21675622,191.69,191.6,1.06443166]
[1753086721657,42.78468397,191.67,191.6,1.06443166]
[1753086721821,42.78468397,191.67,191.61,8.65526154]
[1753086721822,0.66,191.66,191.61,8.65526154]
[1753086722025,0.66,191.66,191.63,8.65526154]
[1753086722217,0.66,191.66,191.62,8.65526154]
[1753086722419,0.66,191.66,191.63,8.65526154]
[1753086723116,37.34,191.67,191.62,8.65526154]
[1753086723352,37.34,191.67,191.64,8.65526154]
[1753086723516,37.34,191.67,191.66,8.65526154]
[1753086723722,5.87684322,191.69,191.66,8.65526154]
[1753086724029,5.87684322,191.69,191.61,5.21893429]
[1753086724030,5.87684322,191.69,191.64,8.65526154]
[1753086724221,8.65526154,191.67,191.61,8.65526154]
[1753086724427,0.66,191.66,191.6,9.7196932]
[1753086724626,38.0,191.66,191.6,1.06443166]
[1753086724834,8.65526154,191.61,191.6,1.06443166]
[1753086725139,45.99526154,191.64,191.6,1.06443166]
[1753086725444,38.0,191.65,191.6,1.06443166]
[1753086725826,37.34,191.65,191.6,6.28359703]
[1753086726141,37.34,191.65,191.6,6.47359703]
[1753086726328,37.34,191.65,191.61,8.65526154]
[1753086726844,37.34,191.65,191.6,5.21916537]
[1753086727048,38.0,191.65,191.61,8.65526154]
[1753086727415,0.66,191.65,191.61,13.87413786]
[1753086727617,6.9974,191.73,191.64,34.65526154]
[1753086727939,6.9974,191.73,191.68,8.65526154]
[1753086728148,6.3374,191.73,191.69,8.65526154]
[1753086728330,6.3374,191.73,191.65,26.0]
[1753086728331,0.66,191.72,191.65,26.0]
[1753086728768,0.66,191.72,191.65,5.21784503]
[1753086730043,0.66,191.72,191.7,8.65526154]
[1753086730618,0.06,191.74,191.7,8.65526154]
[1753086730869,26.0,191.63,191.51,0.03]
[1753086731025,6.6435,191.66,191.51,0.03]
[1753086731026,8.65526154,191.52,191.51,0.03]
[1753086731544,22.95198397,191.51,191.47,0.03]
[1753086731744,61.13198397,191.51,191.47,0.03]
[1753086731927,13.87773908,191.48,191.47,0.03]
[1753086732128,13.87773908,191.48,191.35,0.2]
[1753086732129,16.78468397,191.47,191.35,0.2]
[1753086732340,17.44468397,191.47,191.35,8.85526154]
[1753086732535,16.78468397,191.45,191.36,8.65526154]
[1753086732739,8.65526154,191.41,191.35,8.85526154]
[1753086732952,8.65526154,191.4,191.35,0.2]
[1753086733251,13.04988142,191.4,191.35,0.2]
[1753086733554,13.76988142,191.4,191.35,0.2]
[1753086733759,0.72,191.39,191.35,0.2]
[1753086733921,0.72,191.38,191.35,0.2]
[1753086734228,13.04988142,191.36,191.35,0.2]
[1753086735434,0.72,191.37,191.35,0.2]
[1753086735751,13.04988142,191.36,191.35,0.2]
[1753086735930,16.78468397,191.41,191.35,0.2]
[1753086735931,5.22492466,191.4,191.35,0.2]
[1753086736130,0.72,191.39,191.35,0.2]
[1753086736360,13.04988142,191.38,191.35,0.2]
[1753086736653,13.76988142,191.39,191.35,0.2]
[1753086736951,0.72,191.42,191.35,13.24988142]
[1753086737140,13.04988142,191.41,191.35,13.91988142]
[1753086737337,0.72,191.42,191.36,13.04988142]
[1753086737559,0.72,191.42,191.35,19.14589718]
[1753086737560,13.04988142,191.41,191.35,19.14589718]
[1753086738354,0.72,191.53,191.4,26.0]
[1753086738528,13.04988142,191.52,191.46,13.04988142]
[1753086738733,13.04988142,191.5,191.44,39.04988142]
[1753086738937,4.56422533,191.51,191.44,39.04988142]
[1753086738938,0.72,191.51,191.44,39.04988142]
[1753086739133,13.76988142,191.51,191.45,13.04988142]
[1753086739336,13.04988142,191.49,191.43,13.04988142]
[1753086739538,13.04988142,191.49,191.41,0.67]
[1753086739539,16.78468397,191.49,191.44,13.04988142]
[1753086739867,17.50468397,191.49,191.44,13.04988142]
[1753086740041,0.72,191.48,191.44,13.04988142]
[1753086740242,0.72,191.48,191.41,5.89433197]
[1753086740454,0.72,191.48,191.44,13.04988142]
[1753086741640,16.78468397,191.51,191.46,13.04988142]
[1753086741959,30.55456539,191.51,191.44,0.67]
[1753086742162,0.72,191.5,191.45,13.04988142]
[1753086742745,17.50468397,191.49,191.43,5.22381072]
[1753086742943,30.55456539,191.49,191.43,5.22381072]
[1753086743148,17.50468397,191.49,191.44,13.04988142]
[1753086743346,17.50468397,191.49,191.45,5.22329589]
[1753086743347,0.06,191.48,191.45,5.22329589]
[1753086743550,0.06,191.48,191.45,18.27317731]
[1753086743751,0.06,191.48,191.45,13.04988142]
[1753086744663,0.06,191.48,191.38,50.7629101]
[1753086744664,0.58943807,191.47,191.41,39.04988142]
[1753086745046,0.58943807,191.47,191.42,13.04988142]
[1753086745566,0.58943807,191.47,191.42,18.27384864]
[1753086745878,13.10988142,191.48,191.42,18.27384864]
[1753086746050,13.10988142,191.48,191.42,18.27398159]
[1753086746640,0.06,191.48,191.44,13.04988142]
[1753086746865,0.06,191.48,191.44,13.71988142]
[1753086747765,0.06,191.48,191.45,13.04988142]
[1753086747971,0.06,191.48,191.44,18.27331013]
[1753086748180,0.78,191.48,191.44,5.22342871]
[1753086748475,0.78,191.48,191.41,39.7309262]
[1753086748476,0.72,191.47,191.41,26.0]
[1753086748773,0.72,191.47,191.42,13.04988142]
[1753086749148,0.06,191.48,191.43,13.04988142]
[1753086749746,0.06,191.48,191.42,5.89408986]
[1753086749747,0.06,191.48,191.42,18.94397128]
[1753086750057,0.06,191.48,191.42,5.89408986]
[1753086750257,0.06,191.48,191.42,18.94397128]
[1753086750765,0.06,191.48,191.42,18.27397128]
[1753086750968,0.78,191.48,191.42,18.27397128]
[1753086752062,13.82988142,191.48,191.42,5.22408986]
[1753086752648,0.06,191.48,191.42,5.22408986]
[1753086752877,0.78,191.48,191.42,18.27397128]
[1753086753165,0.78,191.48,191.42,5.22408986]
[1753086753372,8.64117165,191.46,191.4,5.22466039]
[1753086753548,25.42585562,191.44,191.38,5.22517524]
[1753086753753,25.42585562,191.44,191.35,13.26493194]
[1753086753754,8.64117165,191.42,191.36,8.64117165]
[1753086753953,8.64117165,191.42,191.37,5.22547943]
[1753086754361,9.36117165,191.42,191.37,13.86665108]
[1753086754574,0.72,191.42,191.37,13.86665108]
[1753086754872,46.22117165,191.45,191.39,8.64117165]
[1753086755048,37.58,191.45,191.4,8.64117165]
[1753086755253,37.58,191.45,191.41,9.31117165]
[1753086755655,37.58,191.45,191.41,14.53531373]
[1753086756177,37.58,191.45,191.41,13.86531373]
[1753086757165,37.58,191.45,191.41,32.58531373]
[1753086758187,0.72,191.44,191.41,18.72]
[1753086758366,8.64117165,191.44,191.41,18.72]
[1753086758559,0.72,191.43,191.41,18.72]
[1753086760857,0.72,191.42,191.41,18.72]
[1753086761063,8.64117165,191.44,191.41,23.94438744]
[1753086761265,51.44446933,191.45,191.41,18.72]
[1753086761479,25.42585562,191.42,191.41,18.72]
[1753086761679,26.14585562,191.42,191.41,18.72]
[1753086761880,17.50468397,191.42,191.41,18.72]
[1753086762078,26.14585562,191.42,191.41,18.72]
[1753086763287,16.78468397,191.43,191.41,18.72]
[1753086763581,38.21,191.45,191.41,18.72]
[1753086764290,38.21,191.45,191.4,8.64117165]
[1753086764486,38.21,191.45,191.38,0.71]
[1753086764487,16.78468397,191.44,191.38,0.71]
[1753086764668,26.11585562,191.44,191.39,6.12493338]
[1753086764870,26.11585562,191.44,191.39,14.76610503]
[1753086764871,17.47468397,191.44,191.39,14.76610503]
[1753086765770,6.0991,191.48,191.41,0.03]
[1753086765961,54.28468397,191.47,191.43,8.64117165]
[1753086766162,54.28468397,191.47,191.44,5.22356874]
[1753086766770,0.69,191.46,191.42,5.22411451]
[1753086766973,9.33117165,191.46,191.42,5.22411451]
[1753086767365,54.28468397,191.47,191.42,5.22411451]
[1753086767366,62.92585562,191.47,191.42,13.86528616]
[1753086767576,54.97468397,191.47,191.42,13.86528616]
[1753086768164,54.97468397,191.47,191.42,14.57528616]
[1753086768364,37.5,191.47,191.45,8.64117165]
[1753086768586,37.5,191.47,191.46,8.64117165]
[1753086769279,0.06,191.48,191.46,9.35117165]
[1753086769468,0.06,191.48,191.47,8.64117165]
[1753086769668,0.06,191.48,191.47,0.71]
[1753086769870,0.06,191.48,191.47,9.35117165]
[1753086770265,0.06,191.48,191.47,14.57392195]
[1753086771078,0.06,191.48,191.47,13.86392195]
[1753086771987,0.06,191.48,191.46,23.08298311]
[1753086772572,0.06,191.48,191.47,8.64117165]
[1753086772773,0.06,191.48,191.46,23.08298311]
[1753086774691,0.06,191.48,191.46,31.72415476]
[1753086775898,0.75,191.48,191.46,17.86]
[1753086777373,0.75,191.48,191.46,23.08296965]
[1753086777574,0.06,191.48,191.46,23.08296965]
[1753086777997,0.06,191.48,191.46,17.86]
[1753086779179,0.06,191.48,191.47,5.2227503]
[1753086779383,0.06,191.48,191.46,17.86]
[1753086779586,0.06,191.48,191.46,23.08294433]
[1753086780272,0.06,191.48,191.47,9.35117165]
[1753086781172,0.06,191.56,191.5,26.0]
[1753086781379,0.06,191.56,191.55,8.64117165]
[1753086782203,0.06,191.56,191.5,26.71]
[1753086782405,0.75,191.56,191.52,8.64117165]
[1753086782587,0.75,191.56,191.51,8.64117165]
[1753086782899,0.06,191.56,191.52,9.35117165]
[1753086783192,0.75,191.56,191.52,8.64117165]
[1753086783579,0.75,191.56,191.51,13.86283109]
[1753086784191,0.69,191.55,191.51,13.86283109]
[1753086784574,0.69,191.55,191.5,5.22190502]
[1753086784893,9.33117165,191.54,191.49,5.22216674]
[1753086785205,8.64117165,191.53,191.47,8.64117165]
[1753086785375,0.69,191.52,191.47,8.64117165]
[1753086785572,37.34,191.55,191.51,8.64117165]
[1753086785776,37.34,191.55,191.52,9.35117165]
[1753086786003,37.34,191.55,191.52,0.71]
[1753086786508,37.34,191.55,191.51,8.64117165]
[1753086786676,37.34,191.55,191.52,5.2213868]
[1753086787377,37.34,191.55,191.51,9.35117165]
[1753086787378,38.03,191.55,191.51,13.8627687]
[1753086787597,37.34,191.55,191.51,13.8627687]
[1753086787778,37.34,191.55,191.52,9.35117165]
[1753086787979,37.34,191.55,191.51,13.8627687]
[1753086788198,38.03,191.55,191.51,5.22159705]
[1753086788402,37.34,191.55,191.52,8.64117165]
[1753086788703,38.03,191.55,191.5,8.64117165]
[1753086789010,43.25066639,191.55,191.49,0.71]
[1753086789311,8.64117165,191.53,191.47,34.64117165]
[1753086789498,9.33117165,191.52,191.47,31.22273647]
[1753086789677,46.67117165,191.52,191.47,26.0]
[1753086790007,0.69,191.51,191.46,5.25294725]
[1753086790179,0.69,191.5,191.46,8.67117165]
[1753086791005,0.69,191.5,191.46,0.03]
[1753086791177,16.78468397,191.54,191.46,0.03]
[1753086791379,32.6,191.68,191.55,26.0]
[1753086791380,14.71207165,191.64,191.55,26.0]
[1753086791606,14.71207165,191.64,191.55,34.64117165]
[1753086791607,46.08117165,191.61,191.55,34.64117165]
[1753086791790,8.64117165,191.57,191.51,8.64117165]
[1753086792105,37.5,191.56,191.5,9.35117165]
[1753086792604,0.06,191.56,191.51,8.64117165]
[1753086792807,0.06,191.56,191.52,0.71]
[1753086793016,0.06,191.56,191.52,14.57245272]
[1753086793319,0.06,191.56,191.53,9.34117165]
[1753086793484,0.06,191.56,191.54,8.64117165]
[1753086793689,0.06,191.56,191.55,8.64117165]
[1753086793887,0.06,191.56,191.55,9.34117165]
[1753086794108,0.06,191.56,191.55,0.7]
[1753086794789,0.06,191.56,191.55,9.34117165]
[1753086795412,0.06,191.56,191.54,5.22059022]
[1753086796084,0.06,191.56,191.52,0.7]
[1753086796301,0.06,191.56,191.5,5.22169875]
[1753086796302,0.75,191.56,191.51,8.64117165]
[1753086796509,0.75,191.56,191.51,0.7]
[1753086796803,0.75,191.56,191.51,9.34117165]
[1753086797198,0.06,191.56,191.51,14.56256484]
[1753086797904,0.06,191.56,191.54,26.0]
[1753086798100,0.06,191.56,191.55,8.64117165]
[1753086798496,0.06,191.56,191.55,9.34117165]
[1753086798698,0.06,191.56,191.55,11.21740919]
[1753086798887,0.06,191.56,191.55,11.91740919]
[1753086799328,0.06,191.6,191.56,18.27103779]
[1753086799487,0.06,191.6,191.59,8.64117165]
[1753086799909,0.06,191.6,191.59,9.34117165]
[1753086801385,0.06,191.6,191.59,8.64117165]
[1753086801591,0.06,191.6,191.58,8.64117165]
[1753086801997,0.06,191.6,191.58,9.34117165]
[1753086802408,0.06,191.6,191.59,8.64117165]
[1753086802717,0.06,191.6,191.59,9.34117165]
[1753086803289,0.06,191.6,191.59,14.56065074]
[1753086803696,0.1,191.68,191.62,26.0]
[1753086803914,0.1,191.68,191.61,37.42]
[1753086804124,0.1,191.68,191.64,26.0]
[1753086804424,0.1,191.68,191.65,8.64117165]
[1753086804622,0.1,191.68,191.65,9.34117165]
[1753086805193,0.1,191.68,191.65,8.64117165]
[1753086805398,0.1,191.68,191.66,9.34117165]
[1753086805916,0.1,191.68,191.65,8.64117165]
[1753086806295,0.1,191.68,191.64,34.64117165]
[1753086806617,0.1,191.68,191.67,8.64117165]
[1753086807391,0.1,191.68,191.67,0.7]
[1753086807598,0.1,191.68,191.65,31.21784503]
[1753086807806,0.1,191.68,191.65,31.91784503]
[1753086808009,0.1,191.68,191.66,8.64117165]
[1753086808189,0.1,191.68,191.66,0.7]
[1753086808392,0.1,191.68,191.61,148.0]
[1753086808606,9.33117165,191.67,191.59,0.7]
[1753086808805,37.42,191.66,191.61,8.64117165]
[1753086808995,38.11,191.66,191.61,8.64117165]
[1753086809208,0.69,191.65,191.6,8.64117165]
[1753086809409,37.42,191.66,191.61,5.91893429]
[1753086809608,42.63760912,191.66,191.61,0.7]
[1753086809817,0.69,191.65,191.61,26.0]
[1753086810014,42.63760912,191.66,191.61,26.0]
[1753086810015,37.42,191.66,191.62,9.34117165]
[1753086810231,37.42,191.66,191.61,35.34117165]
[1753086810605,37.42,191.66,191.61,26.0]